[Event "Marshall CC FIDE Premier August 2024"]
[Site "New York"]
[Date "2024.08.04"]
[Round "4.2"]
[White "Zhang, Alex"]
[Black "Hebbar, Eshaan"]
[Result "0-1"]
[ECO "D31"]
[WhiteElo "2032"]
[BlackElo "2191"]
[Annotator "RC"]
[PlyCount "94"]
[EventDate "2024.08.02"]
[EventType "swiss"]
[EventCountry "USA"]
[SourceTitle "playchess.com"]
[Source "ChessBase"]
[SourceQuality "1"]
[TimeControl "5400+30"]

1. d4 {[%emt 0:00:05]} d5 {[%emt 0:00:05]} 2. c4 {[%emt 0:00:05]} e6 {[%emt 0:00:04]} 3. Nc3 {[%emt 0:00:05]} Be7 {[%emt 0:00:08]} 4. cxd5 {[%emt 0:00:05]} exd5 {[%emt 0:00:06]} 5. Bf4 {[%emt 0:00:05]} c6 {[%emt 0:00:08]} 6. e3 {[%emt 0:00:21]} Bf5 {[%emt 0:00:04]} 7. g4 {[%emt 0:00:23]} Be6 {[%emt 0:00:04]} 8. h4 {[%emt 0:10:07]} Nd7 {[%emt 0:04:14]} 9. h5 {[%emt 0:02:55]} Nh6 {[%emt 0:03:23]} 10. Be2 {[%emt 0:04:51]} f5 {[%emt 0:14:10]} 11. Bxh6 {[%emt 0:14:59]} gxh6 {[%emt 0:00:02]} 12. gxf5 {[%emt 0:04:43]} Bxf5 {[%emt 0:00:02]} 13. Bd3 {[%emt 0:01:07]} Bxd3 {[%emt 0:03:10]} 14. Qxd3 {[%emt 0:01:44]} Qb6 {[%emt 0:00:05]} 15. O-O-O {[%emt 0:01:37]} O-O-O {[%emt 0:00:09]} 16. f4 {[%emt 0:03:16]} Rdg8 {[%emt 0:04:33]} 17. Qc2 {[%emt 0:00:49]} Kb8 {[%emt 0:01:05]} 18. Nf3 {[%emt 0:01:14]} Rg3 {[%emt 0:03:18]} 19. Qf2 {[%emt 0:01:24]} Rhg8 {[%emt 0:00:15]} 20. Rdg1 {[%emt 0:02:34]} Rxg1+ {[%emt 0:00:10]} 21. Rxg1 {[%emt 0:00:06]} Qd8 {[%emt 0:00:10]} 22. Ne5 {[%emt 0:07:16]} Nf6 {[%emt 0:04:26]} 23. f5 {[%emt 0:05:32]} Ka8 {[%emt 0:08:15]} 24. Rg3 {[%emt 0:08:40]} Rxg3 {[%emt 0:03:11]} 25. Qxg3 {[%emt 0:00:02]} Nxh5 {[%emt 0:00:02]} 26. Qh2 {[%emt 0:02:16]} Ng7 {[%emt 0:01:50]} 27. Nf7 {[%emt 0:06:26]} Qe8 {[%emt 0:03:24]} 28. Nxh6 {[%emt 0:03:35]} Bg5 {[%emt 0:00:09]} 29. Nd1 {[%emt 0:02:00]} Bxh6 {[%emt 0:03:58]} 30. Qxh6 {[%emt 0:00:03]} Nxf5 {[%emt 0:00:02]} 31. Qg5 {[%emt 0:00:35]} Nd6 {[%emt 0:00:49]} 32. Qf6 {[%emt 0:03:10]} Nc4 {[%emt 0:00:23]} 33. Qh6 {[%emt 0:00:04]} Qe7 {[%emt 0:00:26]} 34. b3 {[%emt 0:03:41]} Qa3+ {[%emt 0:07:33]} 35. Kb1 {[%emt 0:00:08]} Nd2+ {[%emt 0:00:05]} 36. Kc2 {[%emt 0:00:05]} Ne4 {[%emt 0:05:31]} 37. Qxh7 {[%emt 0:02:09]} Qxa2+ {[%emt 0:00:16]} 38. Nb2 {[%emt 0:00:04]} a6 {[%emt 0:00:12]} 39. Qg8+ {[%emt 0:00:29]} Ka7 {[%emt 0:00:00]} 40. Qg2 {[%emt 0:05:05]} Qa5 {[%emt 0:01:08]} 41. Na4 {[%emt 0:00:18]} Qe1 {[%emt 0:00:37]} 42. Qf3 {[%emt 0:00:45]} Qd2+ {[%emt 0:01:14]} 43. Kb1 {[%emt 0:00:03]} Qd3+ {[%emt 0:00:14]} 44. Kb2 {[%emt 0:00:27]} Nd2 {[%emt 0:00:17]} 45. Qd1 {[%emt 0:00:06]} Nc4+ {[%emt 0:00:19]} 46. Kc1 {[%emt 0:00:03]} Qxe3+ {[%emt 0:00:08]} 47. Kc2 {[%emt 0:00:14]} Na3+ {[%emt 0:00:41]} 0-1

[Event "Marshall CC FIDE Premier August 2024"]
[Site "New York"]
[Date "2024.08.04"]
[Round "4.3"]
[White "Shankar, Pranav"]
[Black "Muthukumar, Haari"]
[Result "0-1"]
[ECO "C07"]
[WhiteElo "1874"]
[BlackElo "2125"]
[Annotator "RC"]
[PlyCount "82"]
[EventDate "2024.08.02"]
[EventType "swiss"]
[EventCountry "USA"]
[SourceTitle "playchess.com"]
[Source "ChessBase"]
[SourceQuality "1"]
[TimeControl "5400+30"]

1. e4 {[%emt 0:05:35]} e6 {[%emt 0:00:26]} 2. d4 {[%emt 0:00:09]} d5 {[%emt 0:00:02]} 3. Nd2 {[%emt 0:00:15]} c5 {[%emt 0:00:13]} 4. exd5 {[%emt 0:00:15]} Qxd5 {[%emt 0:00:06]} 5. Ngf3 {[%emt 0:00:33]} cxd4 {[%emt 0:00:05]} 6. Bc4 {[%emt 0:00:56]} Qd6 {[%emt 0:00:05]} 7. O-O {[%emt 0:02:04]} Nf6 {[%emt 0:00:07]} 8. Nb3 {[%emt 0:00:37]} Nc6 {[%emt 0:00:04]} 9. Nbxd4 {[%emt 0:02:54]} Nxd4 {[%emt 0:00:04]} 10. Nxd4 {[%emt 0:01:49]} Be7 {[%emt 0:00:02]} 11. Nb5 {[%emt 0:07:34]} Qc6 {[%emt 0:00:10]} 12. Qe2 {[%emt 0:08:30]} a6 {[%emt 0:02:27]} 13. Be3 {[%emt 0:08:55]} Bd7 {[%emt 0:08:33]} 14. Nd4 {[%emt 0:02:46]} Qc7 {[%emt 0:00:22]} 15. a4 {[%emt 0:04:31]} e5 {[%emt 0:07:37]} 16. Rfe1 {[%emt 0:14:14]} exd4 {[%emt 0:19:17]} 17. Bxd4 {[%emt 0:05:34]} O-O-O {[%emt 0:12:48]} 18. Bxa6 {[%emt 0:09:45]} Rhe8 {[%emt 0:03:24]} 19. Be5 {[%emt 0:05:25]} Bd6 {[%emt 0:03:05]} 20. Bxd6 {[%emt 0:01:06]} Rxe2 {[%emt 0:02:25]} 21. Bxc7 {[%emt 0:00:29]} Rxe1+ {[%emt 0:00:07]} 22. Rxe1 {[%emt 0:00:09]} Kxc7 {[%emt 0:00:03]} 23. Bc4 {[%emt 0:00:24]} Bxa4 {[%emt 0:01:02]} 24. b3 {[%emt 0:00:30]} Be8 {[%emt 0:01:52]} 25. Kf1 {[%emt 0:00:33]} b5 {[%emt 0:01:04]} 26. Bd3 {[%emt 0:00:48]} Bc6 {[%emt 0:38:00]} 27. Re5 {[%emt 0:02:11]} Rd5 {[%emt 0:00:00]} 28. Rxd5 {[%emt 0:00:26]} Nxd5 {[%emt 0:00:00]} 29. Bxh7 {[%emt 0:00:14]} g6 {[%emt 0:00:00]} 30. Bg8 {[%emt 0:00:48]} Be8 {[%emt 0:00:00]} 31. c4 {[%emt 0:00:13]} bxc4 {[%emt 0:00:00]} 32. bxc4 {[%emt 0:00:19]} Nf6 {[%emt 0:00:00]} 33. Bxf7 {[%emt 0:00:33]} Bxf7 {[%emt 0:00:00]} 34. h4 {[%emt 0:00:21]} Bxc4+ {[%emt 0:04:00]} 35. Ke1 {[%emt 0:00:35]} Kd6 {[%emt 0:00:00]} 36. Kd2 {[%emt 0:00:08]} Ke5 {[%emt 0:00:00]} 37. Ke3 {[%emt 0:00:16]} Bd5 {[%emt 0:00:00]} 38. f3 {[%emt 0:00:21]} Be6 {[%emt 0:00:00]} 39. g4 {[%emt 0:00:25]} Nxg4+ {[%emt 0:00:00]} 40. fxg4 {[%emt 0:00:07]} Bxg4 {[%emt 0:00:00]} 41. Kf2 {[%emt 0:00:11]} Kf4 {[%emt 0:00:00]} 0-1

[Event "Marshall CC FIDE Premier August 2024"]
[Site "New York"]
[Date "2024.08.04"]
[Round "4.4"]
[White "Safranek, William"]
[Black "Rand, Steven J"]
[Result "1-0"]
[ECO "B13"]
[WhiteElo "2111"]
[BlackElo "1969"]
[Annotator "RC"]
[PlyCount "57"]
[EventDate "2024.08.02"]
[EventType "swiss"]
[EventCountry "USA"]
[SourceTitle "playchess.com"]
[Source "ChessBase"]
[SourceQuality "1"]
[TimeControl "5400+30"]

1. e4 {[%emt 0:00:02]} c6 {[%emt 0:00:05]} 2. d4 {[%emt 0:00:08]} d5 {[%emt 0:00:04]} 3. exd5 {[%emt 0:00:03]} cxd5 {[%emt 0:00:05]} 4. Bd3 {[%emt 0:00:03]} Nc6 {[%emt 0:00:18]} 5. c3 {[%emt 0:00:03]} Nf6 {[%emt 0:00:08]} 6. Bf4 {[%emt 0:00:04]} Bg4 {[%emt 0:01:57]} 7. Qb3 {[%emt 0:00:04]} Qd7 {[%emt 0:03:07]} 8. Nd2 {[%emt 0:00:04]} e6 {[%emt 0:01:24]} 9. Ngf3 {[%emt 0:00:05]} Bd6 {[%emt 0:12:35]} 10. Bxd6 {[%emt 0:00:05]} Qxd6 {[%emt 0:00:04]} 11. O-O {[%emt 0:00:05]} O-O {[%emt 0:02:04]} 12. Rae1 {[%emt 0:00:03]} Qc7 {[%emt 0:12:21]} 13. Qc2 {[%emt 0:01:48]} Rac8 {[%emt 0:01:04]} 14. Qb1 {[%emt 0:00:05]} Ne7 {[%emt 0:03:44]} 15. Ne5 {[%emt 0:00:33]} Bf5 {[%emt 0:00:33]} 16. Re3 {[%emt 1:35:15]} b5 {[%emt 0:05:19]} 17. Bxf5 {[%emt 0:00:00]} Nxf5 {[%emt 0:00:10]} 18. Rh3 {[%emt 0:00:00]} b4 {[%emt 0:07:42]} 19. Qd3 {[%emt 0:00:00]} bxc3 {[%emt 0:03:08]} 20. bxc3 {[%emt 0:00:00]} Nd7 {[%emt 0:15:18]} 21. Nxd7 {[%emt 0:00:00]} Qxd7 {[%emt 0:00:05]} 22. Nb3 {[%emt 0:00:00]} g6 {[%emt 0:02:21]} 23. Nc5 {[%emt 0:00:00]} Qc6 {[%emt 0:01:47]} 24. g4 {[%emt 0:00:00]} Ng7 {[%emt 0:11:25]} 25. Qe3 {[%emt 0:00:00]} f5 {[%emt 0:01:06]} 26. Qh6 {[%emt 0:00:00]} fxg4 {[%emt 0:01:15]} 27. Qxh7+ {[%emt 0:00:00]} Kf7 {[%emt 0:00:05]} 28. Rh6 {[%emt 0:00:00]} e5 {[%emt 0:01:09]} 29. Nd3 {[%emt 0:06:30]} 1-0

[Event "Marshall CC FIDE Premier August 2024"]
[Site "New York"]
[Date "2024.08.04"]
[Round "4.5"]
[White "Zhu, Linxi"]
[Black "Knowles, Chase"]
[Result "1-0"]
[ECO "C13"]
[WhiteElo "2129"]
[BlackElo "1993"]
[Annotator "RC"]
[PlyCount "75"]
[EventDate "2024.08.02"]
[EventType "swiss"]
[EventCountry "USA"]
[SourceTitle "playchess.com"]
[Source "ChessBase"]
[SourceQuality "1"]
[TimeControl "5400+30"]

1. e4 {[%emt 0:00:01]} e6 {[%emt 0:04:34]} 2. d4 {[%emt 0:00:08]} d5 {[%emt 0:00:24]} 3. Nc3 {[%emt 0:00:07]} Nf6 {[%emt 0:00:49]} 4. Bg5 {[%emt 0:00:06]} dxe4 {[%emt 0:00:18]} 5. Nxe4 {[%emt 0:00:07]} Be7 {[%emt 0:00:20]} 6. Bxf6 {[%emt 0:00:08]} gxf6 {[%emt 0:00:25]} 7. Nf3 {[%emt 0:00:11]} a6 {[%emt 0:00:21]} 8. Bd3 {[%emt 0:03:35]} f5 {[%emt 0:00:51]} 9. Nc3 {[%emt 0:04:07]} c5 {[%emt 0:05:47]} 10. dxc5 {[%emt 0:05:59]} Qa5 {[%emt 0:03:57]} 11. Qe2 {[%emt 0:03:33]} Qxc5 {[%emt 0:01:05]} 12. O-O {[%emt 0:15:32]} Nd7 {[%emt 0:04:47]} 13. Rfe1 {[%emt 0:03:35]} Bf6 {[%emt 0:06:45]} 14. Rad1 {[%emt 0:06:22]} b5 {[%emt 0:04:11]} 15. Qd2 {[%emt 0:02:52]} O-O {[%emt 0:03:56]} 16. Ne4 {[%emt 0:04:53]} Qe7 {[%emt 0:07:19]} 17. Ng3 {[%emt 0:04:24]} Bxb2 {[%emt 0:13:42]} 18. Nxf5 {[%emt 0:06:09]} Qf6 {[%emt 0:01:40]} 19. Nh6+ {[%emt 0:00:14]} Kh8 {[%emt 0:01:49]} 20. Qg5 {[%emt 0:13:40]} Nc5 {[%emt 0:09:01]} 21. Qxc5 {[%emt 0:02:06]} Qxh6 {[%emt 0:00:33]} 22. Be4 {[%emt 0:00:24]} Rb8 {[%emt 0:04:32]} 23. Qc7 {[%emt 0:00:09]} Bb7 {[%emt 0:24:54]} 24. Bxb7 {[%emt 0:00:11]} Rg8 {[%emt 0:00:00]} 25. Ne5 {[%emt 0:01:59]} Bxe5 {[%emt 0:00:00]} 26. Qxe5+ {[%emt 0:00:06]} f6 {[%emt 0:00:00]} 27. Qc7 {[%emt 0:00:27]} Rbe8 {[%emt 0:00:00]} 28. Rd7 {[%emt 0:00:40]} f5 {[%emt 0:00:00]} 29. Qe5+ {[%emt 0:00:08]} Rg7 {[%emt 0:00:00]} 30. Rxg7 {[%emt 0:00:12]} Qxg7 {[%emt 0:00:00]} 31. Qxg7+ {[%emt 0:00:24]} Kxg7 {[%emt 0:00:00]} 32. Bxa6 {[%emt 0:00:09]} Kf6 {[%emt 0:00:00]} 33. Bxb5 {[%emt 0:00:05]} Rc8 {[%emt 0:00:00]} 34. c4 {[%emt 0:00:04]} Rd8 {[%emt 0:00:00]} 35. c5 {[%emt 0:00:07]} Rd5 {[%emt 0:00:00]} 36. Rxe6+ {[%emt 0:00:30]} Kf7 {[%emt 0:00:00]} 37. Bc4 {[%emt 0:00:26]} Rd1+ {[%emt 0:00:00]} 38. Re1+ {[%emt 0:00:05]} 1-0

[Event "Marshall CC FIDE Premier August 2024"]
[Site "New York"]
[Date "2024.08.05"]
[Round "5.1"]
[White "Lin, Bryan Enming"]
[Black "Bortnyk, Mykola"]
[Result "1/2-1/2"]
[ECO "B03"]
[WhiteElo "2155"]
[BlackElo "2432"]
[Annotator "RC"]
[PlyCount "145"]
[EventDate "2024.08.02"]
[EventType "swiss"]
[EventCountry "USA"]
[SourceTitle "playchess.com"]
[Source "ChessBase"]
[SourceQuality "1"]
[TimeControl "5400+30"]

1. e4 {[%emt 0:00:02]} Nf6 {[%emt 0:03:15]} 2. e5 {[%emt 0:00:11]} Nd5 {[%emt 0:00:01]} 3. d4 {[%emt 0:00:13]} d6 {[%emt 0:00:03]} 4. c4 {[%emt 0:00:16]} Nb6 {[%emt 0:00:01]} 5. exd6 {[%emt 0:00:12]} exd6 {[%emt 0:00:17]} 6. Nc3 {[%emt 0:00:07]} Bf5 {[%emt 0:00:15]} 7. Bd3 {[%emt 0:01:44]} Bg6 {[%emt 0:01:42]} 8. Nge2 {[%emt 0:01:30]} Be7 {[%emt 0:00:11]} 9. O-O {[%emt 0:01:03]} Nc6 {[%emt 0:00:38]} 10. Be3 {[%emt 0:02:00]} O-O {[%emt 0:01:47]} 11. b3 {[%emt 0:01:21]} Re8 {[%emt 0:00:09]} 12. Bxg6 {[%emt 0:02:26]} hxg6 {[%emt 0:00:14]} 13. Qd2 {[%emt 0:00:45]} Bf6 {[%emt 0:01:00]} 14. d5 {[%emt 0:05:16]} Ne7 {[%emt 0:01:17]} 15. Ng3 {[%emt 0:03:39]} Nf5 {[%emt 0:02:55]} 16. Nxf5 {[%emt 0:00:28]} gxf5 {[%emt 0:00:02]} 17. Bd4 {[%emt 0:01:43]} Nd7 {[%emt 0:00:49]} 18. Rfe1 {[%emt 0:03:28]} Be5 {[%emt 0:02:00]} 19. Bxe5 {[%emt 0:07:13]} dxe5 {[%emt 0:02:13]} 20. f3 {[%emt 0:03:41]} Qf6 {[%emt 0:00:32]} 21. Rad1 {[%emt 0:04:34]} Rad8 {[%emt 0:02:34]} 22. Kh1 {[%emt 0:02:49]} a6 {[%emt 0:00:06]} 23. b4 {[%emt 0:03:40]} Qh4 {[%emt 0:02:44]} 24. Qd3 {[%emt 0:03:21]} e4 {[%emt 0:00:40]} 25. fxe4 {[%emt 0:03:09]} Ne5 {[%emt 0:00:14]} 26. Qg3 {[%emt 0:07:00]} Qxg3 {[%emt 0:00:27]} 27. hxg3 {[%emt 0:00:05]} Nxc4 {[%emt 0:00:04]} 28. exf5 {[%emt 0:01:55]} Ne3 {[%emt 0:00:07]} 29. Rc1 {[%emt 0:01:51]} Nxf5 {[%emt 0:00:15]} 30. Rxe8+ {[%emt 0:00:58]} Rxe8 {[%emt 0:00:02]} 31. Na4 {[%emt 0:01:00]} Re7 {[%emt 0:07:24]} 32. Nc5 {[%emt 0:00:13]} Nd6 {[%emt 0:00:03]} 33. Kg1 {[%emt 0:02:28]} Re2 {[%emt 0:04:55]} 34. a4 {[%emt 0:08:43]} Rd2 {[%emt 0:04:17]} 35. Nd7 {[%emt 0:04:06]} Rxd5 {[%emt 0:00:32]} 36. Rxc7 {[%emt 0:00:23]} Rd4 {[%emt 0:00:06]} 37. Nc5 {[%emt 0:25:27]} Rxb4 {[%emt 0:00:17]} 38. Rd7 {[%emt 0:00:00]} Rc4 {[%emt 0:01:30]} 39. Nxb7 {[%emt 0:00:00]} Nxb7 {[%emt 0:00:01]} 40. Rxb7 {[%emt 0:00:00]} Rxa4 {[%emt 0:00:05]} 41. Ra7 {[%emt 0:00:00]} f6 {[%emt 0:00:42]} 42. Kh2 {[%emt 0:00:00]} Kh7 {[%emt 0:00:16]} 43. g4 {[%emt 0:00:00]} Ra3 {[%emt 0:00:04]} 44. g3 {[%emt 0:00:00]} Kh6 {[%emt 0:01:24]} 45. Kh3 {[%emt 0:00:00]} Kg6 {[%emt 0:00:13]} 46. Kh2 {[%emt 0:00:00]} Ra4 {[%emt 0:00:22]} 47. Kg2 {[%emt 0:00:00]} Kh6 {[%emt 0:00:11]} 48. Kh2 {[%emt 0:00:00]} g6 {[%emt 0:00:06]} 49. Kg2 {[%emt 0:00:00]} Kg5 {[%emt 0:00:11]} 50. Kh3 {[%emt 0:00:00]} f5 {[%emt 0:03:00]} 51. gxf5 {[%emt 0:00:00]} Kxf5 {[%emt 0:00:02]} 52. Ra8 {[%emt 0:00:00]} g5 {[%emt 0:00:42]} 53. Rg8 {[%emt 0:00:00]} a5 {[%emt 0:00:20]} 54. Ra8 {[%emt 0:00:00]} Ke6 {[%emt 0:00:26]} 55. g4 {[%emt 0:01:11]} Ra1 {[%emt 0:08:01]} 56. Rg8 {[%emt 0:01:01]} Kf6 {[%emt 0:00:08]} 57. Rf8+ {[%emt 0:00:07]} Kg7 {[%emt 0:00:09]} 58. Ra8 {[%emt 0:00:11]} a4 {[%emt 0:00:24]} 59. Ra6 {[%emt 0:00:40]} a3 {[%emt 0:00:07]} 60. Kg2 {[%emt 0:00:12]} Kf7 {[%emt 0:00:04]} 61. Ra5 {[%emt 0:00:22]} Ra2+ {[%emt 0:00:20]} 62. Kg3 {[%emt 0:01:16]} Kf6 {[%emt 0:00:13]} 63. Rf5+ {[%emt 0:00:39]} Kg6 {[%emt 0:00:03]} 64. Ra5 {[%emt 0:00:04]} Ra1 {[%emt 0:00:06]} 65. Kg2 {[%emt 0:00:05]} Kh6 {[%emt 0:00:22]} 66. Ra6+ {[%emt 0:00:19]} Kg7 {[%emt 0:00:26]} 67. Ra5 {[%emt 0:00:09]} Kf6 {[%emt 0:00:04]} 68. Rf5+ {[%emt 0:00:09]} Ke6 {[%emt 0:00:00]} 69. Rxg5 {[%emt 0:00:13]} Rc1 {[%emt 0:00:04]} 70. Ra5 {[%emt 0:00:10]} Rc3 {[%emt 0:00:05]} 71. g5 {[%emt 0:00:16]} Rb3 {[%emt 0:00:32]} 72. Kh2 {[%emt 0:00:34]} Kf7 {[%emt 0:00:26]} 73. Ra6 {[%emt 0:00:07]} 1/2-1/2

[Event "Marshall CC FIDE Premier August 2024"]
[Site "New York"]
[Date "2024.08.05"]
[Round "5.2"]
[White "Hebbar, Eshaan"]
[Black "Nakada, Akira"]
[Result "0-1"]
[ECO "D38"]
[WhiteElo "2191"]
[BlackElo "2417"]
[Annotator "RC"]
[PlyCount "97"]
[EventDate "2024.08.02"]
[EventType "swiss"]
[EventCountry "USA"]
[SourceTitle "playchess.com"]
[Source "ChessBase"]
[SourceQuality "1"]
[TimeControl "5400+30"]

1. d4 {[%emt 0:00:02]} Nf6 {[%emt 0:03:09]} 2. c4 {[%emt 0:00:07]} e6 {[%emt 0:00:06]} 3. Nf3 {[%emt 0:00:05]} d5 {[%emt 0:00:04]} 4. Nc3 {[%emt 0:00:05]} Bb4 {[%emt 0:00:04]} 5. Bg5 {[%emt 0:02:41]} h6 {[%emt 0:00:05]} 6. Bxf6 {[%emt 0:00:04]} Qxf6 {[%emt 0:00:04]} 7. e3 {[%emt 0:00:09]} O-O {[%emt 0:00:05]} 8. Rc1 {[%emt 0:00:03]} Nc6 {[%emt 0:00:05]} 9. cxd5 {[%emt 0:02:53]} exd5 {[%emt 0:00:04]} 10. a3 {[%emt 0:00:08]} Bxc3+ {[%emt 0:00:05]} 11. Rxc3 {[%emt 0:00:07]} Ne7 {[%emt 0:00:50]} 12. Ne5 {[%emt 0:09:57]} c6 {[%emt 0:01:50]} 13. Bd3 {[%emt 0:00:57]} Bf5 {[%emt 0:01:29]} 14. O-O {[%emt 0:01:16]} Nc8 {[%emt 0:00:36]} 15. b4 {[%emt 0:13:59]} Nd6 {[%emt 0:00:45]} 16. a4 {[%emt 0:01:03]} a6 {[%emt 0:01:13]} 17. Qb1 {[%emt 0:06:32]} Bxd3 {[%emt 0:00:06]} 18. Qxd3 {[%emt 0:00:48]} Qg5 {[%emt 0:00:54]} 19. Rc2 {[%emt 0:06:23]} Rfe8 {[%emt 0:00:14]} 20. Rfc1 {[%emt 0:03:15]} h5 {[%emt 0:01:37]} 21. Qe2 {[%emt 0:11:57]} g6 {[%emt 0:01:09]} 22. Qf3 {[%emt 0:01:10]} Qe7 {[%emt 0:00:05]} 23. Qe2 {[%emt 0:00:34]} Kg7 {[%emt 0:00:14]} 24. Qd3 {[%emt 0:02:22]} h4 {[%emt 0:01:22]} 25. h3 {[%emt 0:00:32]} Rh8 {[%emt 0:01:39]} 26. Qe2 {[%emt 0:03:25]} f6 {[%emt 0:00:28]} 27. Nd3 {[%emt 0:00:22]} g5 {[%emt 0:04:54]} 28. Qg4 {[%emt 0:04:07]} Rae8 {[%emt 0:01:09]} 29. Re1 {[%emt 0:01:58]} Qe6 {[%emt 0:36:50]} 30. Qxe6 {[%emt 0:03:03]} Rxe6 {[%emt 0:00:02]} 31. Nc5 {[%emt 0:00:55]} Re7 {[%emt 0:00:01]} 32. Kf1 {[%emt 0:01:02]} Rhe8 {[%emt 0:00:09]} 33. Ke2 {[%emt 0:00:55]} f5 {[%emt 0:02:33]} 34. Nd3 {[%emt 0:07:39]} Nc4 {[%emt 0:01:27]} 35. Kf1 {[%emt 0:05:11]} Kf6 {[%emt 0:02:19]} 36. Nb2 {[%emt 0:02:27]} b5 {[%emt 0:04:19]} 37. Nxc4 {[%emt 0:02:37]} bxc4 {[%emt 0:00:06]} 38. Ke2 {[%emt 0:01:50]} f4 {[%emt 0:01:49]} 39. Kd2 {[%emt 0:00:12]} Kf5 {[%emt 0:00:47]} 40. Ra2 {[%emt 0:03:47]} Rb7 {[%emt 0:01:40]} 41. Kc3 {[%emt 0:00:29]} Reb8 {[%emt 0:02:54]} 42. Rb2 {[%emt 0:00:36]} a5 {[%emt 0:32:09]} 43. Reb1 {[%emt 0:00:16]} fxe3 {[%emt 0:00:00]} 44. fxe3 {[%emt 0:00:02]} axb4+ {[%emt 0:00:00]} 45. Rxb4 {[%emt 0:00:01]} Rxb4 {[%emt 0:00:00]} 46. Rxb4 {[%emt 0:00:02]} Ra8 {[%emt 0:00:00]} 47. Kd2 {[%emt 0:01:08]} Ke4 {[%emt 0:00:00]} 48. Ke2 {[%emt 0:00:08]} Ra7 {[%emt 0:00:00]} 49. Kf2 {[%emt 0:05:39]} 0-1

[Event "Marshall CC FIDE Premier August 2024"]
[Site "New York"]
[Date "2024.08.05"]
[Round "5.3"]
[White "Muthukumar, Haari"]
[Black "Ling, Chenxuan"]
[Result "1-0"]
[ECO "B33"]
[WhiteElo "2125"]
[BlackElo "1941"]
[Annotator "RC"]
[PlyCount "89"]
[EventDate "2024.08.02"]
[EventType "swiss"]
[EventCountry "USA"]
[SourceTitle "playchess.com"]
[Source "ChessBase"]
[SourceQuality "1"]
[TimeControl "5400+30"]

1. e4 {[%emt 0:00:02]} c5 {[%emt 0:00:59]} 2. Nf3 {[%emt 0:00:06]} Nc6 {[%emt 0:00:14]} 3. d4 {[%emt 0:00:07]} cxd4 {[%emt 0:00:15]} 4. Nxd4 {[%emt 0:00:04]} Nf6 {[%emt 0:00:08]} 5. Nc3 {[%emt 0:00:05]} e5 {[%emt 0:00:05]} 6. Ndb5 {[%emt 0:00:03]} d6 {[%emt 0:00:10]} 7. Nd5 {[%emt 0:00:05]} Nxd5 {[%emt 0:00:22]} 8. exd5 {[%emt 0:00:02]} Nb8 {[%emt 0:00:03]} 9. a4 {[%emt 0:00:19]} Be7 {[%emt 0:00:30]} 10. Be2 {[%emt 0:00:12]} O-O {[%emt 0:01:45]} 11. Bd2 {[%emt 0:00:10]} f5 {[%emt 0:04:19]} 12. O-O {[%emt 0:02:32]} Nd7 {[%emt 0:01:58]} 13. a5 {[%emt 0:01:05]} a6 {[%emt 0:06:12]} 14. Na3 {[%emt 0:00:10]} Qc7 {[%emt 0:05:08]} 15. Nc4 {[%emt 0:00:19]} Qb8 {[%emt 0:04:05]} 16. Bb4 {[%emt 0:01:41]} Rf7 {[%emt 0:04:34]} 17. Qd3 {[%emt 0:05:12]} b5 {[%emt 0:04:01]} 18. axb6 {[%emt 0:01:59]} Nxb6 {[%emt 0:00:10]} 19. Na5 {[%emt 0:02:41]} Qc7 {[%emt 0:08:51]} 20. Nc6 {[%emt 0:04:29]} Bb7 {[%emt 0:02:57]} 21. Nxe7+ {[%emt 0:04:15]} Qxe7 {[%emt 0:00:13]} 22. c4 {[%emt 0:02:12]} Nd7 {[%emt 0:03:26]} 23. Qa3 {[%emt 0:09:56]} Rf6 {[%emt 0:02:57]} 24. Bd2 {[%emt 0:01:13]} h6 {[%emt 0:01:47]} 25. b4 {[%emt 0:01:56]} Kh7 {[%emt 0:04:34]} 26. Rac1 {[%emt 0:03:24]} Rc8 {[%emt 0:03:19]} 27. Rfd1 {[%emt 0:07:31]} Nf8 {[%emt 0:15:19]} 28. Be1 {[%emt 0:13:43]} Ng6 {[%emt 0:03:27]} 29. g3 {[%emt 0:01:47]} Qf7 {[%emt 0:01:09]} 30. Qd3 {[%emt 0:09:09]} Ne7 {[%emt 0:02:27]} 31. Bc3 {[%emt 0:01:10]} Qg6 {[%emt 0:03:10]} 32. f4 {[%emt 0:02:42]} e4 {[%emt 0:02:45]} 33. Qd4 {[%emt 0:00:47]} Rf7 {[%emt 0:01:24]} 34. Bb2 {[%emt 0:02:18]} h5 {[%emt 0:02:53]} 35. Qb6 {[%emt 0:00:51]} Ng8 {[%emt 0:07:24]} 36. c5 {[%emt 0:01:09]} h4 {[%emt 0:00:55]} 37. Kg2 {[%emt 0:01:57]} Nf6 {[%emt 0:01:39]} 38. c6 {[%emt 0:02:01]} Ba8 {[%emt 0:00:32]} 39. Bxa6 {[%emt 0:02:28]} Re8 {[%emt 0:00:11]} 40. Bxf6 {[%emt 0:03:57]} Qxf6 {[%emt 0:00:09]} 41. Qd4 {[%emt 0:00:14]} Qg6 {[%emt 0:00:37]} 42. Qe3 {[%emt 0:02:26]} Rc7 {[%emt 0:00:38]} 43. b5 {[%emt 0:00:28]} Qg4 {[%emt 0:00:06]} 44. b6 {[%emt 0:01:21]} Rce7 {[%emt 0:00:08]} 45. c7 {[%emt 0:12:42]} 1-0